[Event "*** SCC Grand Prix: Titled Tuesday Blitz"]
[Site "Chess.com"]
[Date "2020.10.13"]
[Round "1"]
[White "AleksanderHnydiuk"]
[Black "PawnEatingZombie"]
[Result "1-0"]
[WhiteElo "2553"]
[BlackElo "2190"]
[TimeControl "180+1"]
[EndTime "10:06:12 PDT"]
[Termination "AleksanderHnydiuk won on time"]

1. e4 {[%clk 0:03:00.9]} 1... c6 {[%clk 0:02:59.6]} 2. d4 {[%clk 0:03:00.4]}
2... d5 {[%clk 0:03:00.5]} 3. Nc3 {[%clk 0:03:00.4]} 3... dxe4 {[%clk
0:02:59.9]} 4. Nxe4 {[%clk 0:03:00.6]} 4... Bf5 {[%clk 0:03:00.5]} 5. Ng3 {[%clk
0:03:00.4]} 5... Bg6 {[%clk 0:03:01]} 6. h4 {[%clk 0:03:01]} 6... h6 {[%clk
0:03:01.1]} 7. Nf3 {[%clk 0:03:01.6]} 7... Nd7 {[%clk 0:03:01.1]} 8. h5 {[%clk
0:03:01.6]} 8... Bh7 {[%clk 0:03:01.6]} 9. Bd3 {[%clk 0:03:02.1]} 9... Bxd3
{[%clk 0:03:02.2]} 10. Qxd3 {[%clk 0:03:03]} 10... e6 {[%clk 0:03:02.6]} 11. Bd2
{[%clk 0:03:02.8]} 11... Ngf6 {[%clk 0:03:01.8]} 12. O-O-O {[%clk 0:03:02.7]}
12... Be7 {[%clk 0:03:02.2]} 13. Kb1 {[%clk 0:03:02.6]} 13... Qb6 {[%clk
0:03:02.3]} 14. Ne4 {[%clk 0:02:59.3]} 14... Rd8 {[%clk 0:03:01.2]} 15. Nxf6+
{[%clk 0:02:53.8]} 15... Nxf6 {[%clk 0:02:59.1]} 16. c4 {[%clk 0:02:46.2]} 16...
c5 {[%clk 0:02:34.5]} 17. Bc3 {[%clk 0:02:45.1]} 17... O-O {[%clk 0:02:24.4]}
18. Qe2 {[%clk 0:02:44.7]} 18... cxd4 {[%clk 0:02:13.7]} 19. Bxd4 {[%clk
0:02:45.6]} 19... Qc6 {[%clk 0:01:53.3]} 20. g4 {[%clk 0:02:26.6]} 20... Nxg4
{[%clk 0:01:17.2]} 21. Rhg1 {[%clk 0:02:21.9]} 21... f5 {[%clk 0:01:17.1]} 22.
Rde1 {[%clk 0:01:44.7]} 22... Bf6 {[%clk 0:00:52.7]} 23. Bxf6 {[%clk 0:01:34.6]}
23... Rxf6 {[%clk 0:00:33.2]} 24. Nh4 {[%clk 0:01:27.7]} 24... e5 {[%clk
0:00:07.7]} 25. f3 {[%clk 0:01:25.6]} 25... Rfd6 {[%clk 0:00:04.8]} 26. fxg4
{[%clk 0:01:23.7]} 26... Rd2 {[%clk 0:00:04.8]} 27. Qxe5 {[%clk 0:01:23.6]}
27... Qxc4 {[%clk 0:00:04.9]} 28. Qe6+ {[%clk 0:01:12.9]} 28... Qxe6 {[%clk
0:00:04.3]} 29. Rxe6 {[%clk 0:01:13.8]} 29... fxg4 {[%clk 0:00:02.8]} 30. Rxg4
{[%clk 0:01:05.6]} 30... Rd1+ {[%clk 0:00:01.9]} 31. Kc2 {[%clk 0:01:05.9]}
31... R8d2+ {[%clk 0:00:01.8]} 32. Kc3 {[%clk 0:01:06]} 1-0

[Event "*** SCC Grand Prix: Titled Tuesday Blitz"]
[Site "Chess.com"]
[Date "2020.10.13"]
[Round "1"]
[White "HemantSharma"]
[Black "Jospem"]
[Result "0-1"]
[WhiteElo "2481"]
[BlackElo "2948"]
[TimeControl "180+1"]
[EndTime "10:06:15 PDT"]
[Termination "Jospem won by resignation"]

1. e4 {[%clk 0:03:00.5]} 1... c5 {[%clk 0:02:56.6]} 2. Nc3 {[%clk 0:03:00.4]}
2... Nc6 {[%clk 0:02:55.8]} 3. g3 {[%clk 0:03:00.9]} 3... g6 {[%clk 0:02:55.9]}
4. Bg2 {[%clk 0:03:01.4]} 4... Bg7 {[%clk 0:02:56.5]} 5. d3 {[%clk 0:03:02]}
5... d6 {[%clk 0:02:57]} 6. Nge2 {[%clk 0:03:02.4]} 6... e6 {[%clk 0:02:56.3]}
7. O-O {[%clk 0:03:02.3]} 7... Nge7 {[%clk 0:02:56.9]} 8. Bg5 {[%clk 0:03:03]}
8... h6 {[%clk 0:02:56.7]} 9. Be3 {[%clk 0:03:02.4]} 9... Nd4 {[%clk 0:02:51.7]}
10. Qd2 {[%clk 0:03:02.4]} 10... Nec6 {[%clk 0:02:49.9]} 11. Nc1 {[%clk
0:03:01.4]} 11... Nb4 {[%clk 0:02:33]} 12. Bxd4 {[%clk 0:02:56.2]} 12... Bxd4
{[%clk 0:02:23.2]} 13. N1e2 {[%clk 0:02:40.6]} 13... Bg7 {[%clk 0:02:22.8]} 14.
f4 {[%clk 0:02:39.6]} 14... O-O {[%clk 0:02:21.7]} 15. g4 {[%clk 0:02:26.7]}
15... Nc6 {[%clk 0:02:08.7]} 16. Kh1 {[%clk 0:02:18.9]} 16... Bd7 {[%clk
0:02:08.3]} 17. f5 {[%clk 0:02:16.7]} 17... Ne5 {[%clk 0:01:48.4]} 18. Qf4
{[%clk 0:02:02.5]} 18... Re8 {[%clk 0:01:37.2]} 19. f6 {[%clk 0:01:40.4]} 19...
Bf8 {[%clk 0:01:37.2]} 20. Rad1 {[%clk 0:01:26.5]} 20... Rc8 {[%clk 0:01:34.5]}
21. Ng3 {[%clk 0:01:13.3]} 21... Qb6 {[%clk 0:01:27.7]} 22. Rb1 {[%clk
0:00:51.6]} 22... c4 {[%clk 0:01:27.3]} 23. dxc4 {[%clk 0:00:48.7]} 23... Nxc4
{[%clk 0:01:23.4]} 24. g5 {[%clk 0:00:43.6]} 24... Qe3 {[%clk 0:01:18.6]} 25.
Qxe3 {[%clk 0:00:16.8]} 25... Nxe3 {[%clk 0:01:17.4]} 26. Rfe1 {[%clk
0:00:17.5]} 26... Nxc2 {[%clk 0:01:09.4]} 27. Re2 {[%clk 0:00:17.2]} 27... Nd4
{[%clk 0:01:07.9]} 28. Rd2 {[%clk 0:00:17.9]} 28... Nb5 {[%clk 0:00:57.4]} 29.
Nxb5 {[%clk 0:00:14.5]} 29... Bxb5 {[%clk 0:00:58.3]} 30. h4 {[%clk 0:00:15]}
30... hxg5 {[%clk 0:00:58.2]} 31. hxg5 {[%clk 0:00:15.9]} 31... Rc5 {[%clk
0:00:58.3]} 0-1

[Event "*** SCC Grand Prix: Titled Tuesday Blitz"]
[Site "Chess.com"]
[Date "2020.10.13"]
[Round "1"]
[White "hungrycaterpillar4"]
[Black "garicradomir"]
[Result "1-0"]
[WhiteElo "2700"]
[BlackElo "2354"]
[TimeControl "180+1"]
[EndTime "10:06:15 PDT"]
[Termination "hungrycaterpillar4 won on time"]

1. Nf3 {[%clk 0:02:58.1]} 1... Nf6 {[%clk 0:02:59.5]} 2. b3 {[%clk 0:02:57.2]}
2... g6 {[%clk 0:02:57.8]} 3. Bb2 {[%clk 0:02:57.3]} 3... Bg7 {[%clk 0:02:58.4]}
4. d4 {[%clk 0:02:57.9]} 4... O-O {[%clk 0:02:58.3]} 5. e3 {[%clk 0:02:57.7]}
5... d6 {[%clk 0:02:58.8]} 6. Be2 {[%clk 0:02:55.9]} 6... Nc6 {[%clk 0:02:59.2]}
7. O-O {[%clk 0:02:55.9]} 7... e5 {[%clk 0:02:59.6]} 8. dxe5 {[%clk 0:02:56.8]}
8... Ng4 {[%clk 0:02:59.8]} 9. c4 {[%clk 0:02:56.9]} 9... Ngxe5 {[%clk
0:02:57.4]} 10. Nxe5 {[%clk 0:02:57.2]} 10... Nxe5 {[%clk 0:02:52.8]} 11. Qd2
{[%clk 0:02:56.8]} 11... a5 {[%clk 0:02:49.1]} 12. Nc3 {[%clk 0:02:56.6]} 12...
b6 {[%clk 0:02:44.4]} 13. Rad1 {[%clk 0:02:55.9]} 13... Bb7 {[%clk 0:02:43.3]}
14. f4 {[%clk 0:02:54.9]} 14... Nd7 {[%clk 0:02:40.8]} 15. e4 {[%clk 0:02:54.1]}
15... Nc5 {[%clk 0:02:33.8]} 16. Bf3 {[%clk 0:02:53.4]} 16... Qh4 {[%clk
0:02:24.2]} 17. g3 {[%clk 0:02:52.5]} 17... Qe7 {[%clk 0:02:18.2]} 18. Rfe1
{[%clk 0:02:51.2]} 18... Rae8 {[%clk 0:02:14.3]} 19. Nd5 {[%clk 0:02:43.5]}
19... Bxd5 {[%clk 0:02:13.6]} 20. Bxg7 {[%clk 0:02:43.2]} 20... Kxg7 {[%clk
0:02:06.6]} 21. Qxd5 {[%clk 0:02:43.1]} 21... Qf6 {[%clk 0:02:01]} 22. Qd2
{[%clk 0:02:33]} 22... Re7 {[%clk 0:01:58.1]} 23. Re2 {[%clk 0:02:27.6]} 23...
Rfe8 {[%clk 0:01:56.9]} 24. Rde1 {[%clk 0:02:27.9]} 24... h5 {[%clk 0:01:55.6]}
25. h4 {[%clk 0:02:27]} 25... Re6 {[%clk 0:01:46.3]} 26. Kg2 {[%clk 0:02:26.6]}
26... Qe7 {[%clk 0:01:41.1]} 27. Qd4+ {[%clk 0:02:26.2]} 27... f6 {[%clk
0:01:39.5]} 28. f5 {[%clk 0:02:18.6]} 28... gxf5 {[%clk 0:01:35.7]} 29. Bxh5
{[%clk 0:02:18.1]} 29... Nxe4 {[%clk 0:01:17.3]} 30. Bxe8 {[%clk 0:02:16.7]}
30... Qxe8 {[%clk 0:01:18.2]} 31. Qd5 {[%clk 0:02:13]} 31... Re5 {[%clk
0:00:59.6]} 32. Qb7 {[%clk 0:02:11.1]} 32... Qf7 {[%clk 0:00:43]} 33. Rxe4
{[%clk 0:02:01.5]} 33... fxe4 {[%clk 0:00:35.6]} 34. Rxe4 {[%clk 0:02:02.4]}
34... Kh6 {[%clk 0:00:33.4]} 35. Rxe5 {[%clk 0:01:57.3]} 35... fxe5 {[%clk
0:00:30.6]} 36. Qe4 {[%clk 0:01:58.2]} 36... Qg6 {[%clk 0:00:26.1]} 37. Kf3
{[%clk 0:01:46.5]} 37... Qxe4+ {[%clk 0:00:22.6]} 38. Kxe4 {[%clk 0:01:47.4]}
38... Kh5 {[%clk 0:00:23.3]} 39. Kf5 {[%clk 0:01:40.4]} 39... c6 {[%clk
0:00:13.6]} 40. a4 {[%clk 0:01:38.5]} 40... Kh6 {[%clk 0:00:06.3]} 41. g4 {[%clk
0:01:38.2]} 41... Kg7 {[%clk 0:00:06.5]} 42. g5 {[%clk 0:01:38.6]} 42... b5
{[%clk 0:00:01.1]} 43. cxb5 {[%clk 0:01:37.3]} 43... cxb5 {[%clk 0:00:02]} 44.
axb5 {[%clk 0:01:37.8]} 1-0

[Event "*** SCC Grand Prix: Titled Tuesday Blitz"]
[Site "Chess.com"]
[Date "2020.10.13"]
[Round "1"]
[White "Legendinunknown"]
[Black "ViktoriyaTarasova"]
[Result "1-0"]
[WhiteElo "2594"]
[BlackElo "2260"]
[TimeControl "180+1"]
[EndTime "10:06:17 PDT"]
[Termination "Legendinunknown won by checkmate"]

1. d4 {[%clk 0:02:59.7]} 1... Nf6 {[%clk 0:02:56.9]} 2. c4 {[%clk 0:02:59.1]}
2... e6 {[%clk 0:02:56.6]} 3. Nc3 {[%clk 0:02:58.9]} 3... Bb4 {[%clk 0:02:56.5]}
4. f3 {[%clk 0:02:58.6]} 4... c5 {[%clk 0:02:55.4]} 5. d5 {[%clk 0:02:58.5]}
5... O-O {[%clk 0:02:54.9]} 6. e4 {[%clk 0:02:57.7]} 6... d6 {[%clk 0:02:55.3]}
7. Bd3 {[%clk 0:02:55.3]} 7... a6 {[%clk 0:02:55.2]} 8. Ne2 {[%clk 0:02:52.9]}
8... exd5 {[%clk 0:02:55.3]} 9. cxd5 {[%clk 0:02:50.1]} 9... b5 {[%clk
0:02:55.6]} 10. O-O {[%clk 0:02:50]} 10... Nbd7 {[%clk 0:02:54]} 11. Bg5 {[%clk
0:02:48.8]} 11... h6 {[%clk 0:02:51.9]} 12. Bh4 {[%clk 0:02:48.5]} 12... c4
{[%clk 0:02:48.6]} 13. Bc2 {[%clk 0:02:47.9]} 13... Bc5+ {[%clk 0:02:49.1]} 14.
Kh1 {[%clk 0:02:47.5]} 14... Qc7 {[%clk 0:02:43.2]} 15. Nd4 {[%clk 0:02:44]}
15... Bb7 {[%clk 0:02:40.8]} 16. Nf5 {[%clk 0:02:42.1]} 16... h5 {[%clk
0:02:23.1]} 17. f4 {[%clk 0:02:32.5]} 17... g6 {[%clk 0:02:22.4]} 18. Ng3 {[%clk
0:01:52.9]} 18... Ng4 {[%clk 0:02:13.8]} 19. Qf3 {[%clk 0:01:25.5]} 19... Rae8
{[%clk 0:01:36.4]} 20. Rae1 {[%clk 0:01:20.6]} 20... Bd4 {[%clk 0:01:17.7]} 21.
h3 {[%clk 0:01:16.9]} 21... Nh6 {[%clk 0:01:00]} 22. Nxh5 {[%clk 0:00:54.3]}
22... gxh5 {[%clk 0:00:56.1]} 23. Qxh5 {[%clk 0:00:55.2]} 23... Bg7 {[%clk
0:00:44.7]} 24. Bg5 {[%clk 0:00:54.2]} 24... b4 {[%clk 0:00:44.4]} 25. Bxh6
{[%clk 0:00:48.7]} 25... Bxh6 {[%clk 0:00:42]} 26. Qxh6 {[%clk 0:00:49]} 26...
bxc3 {[%clk 0:00:42.3]} 27. Rf3 {[%clk 0:00:47.2]} 27... f6 {[%clk 0:00:18.6]}
28. Rg3+ {[%clk 0:00:44.8]} 28... Kf7 {[%clk 0:00:18.7]} 29. Qh7# {[%clk
0:00:43.9]} 1-0

[Event "*** SCC Grand Prix: Titled Tuesday Blitz"]
[Site "Chess.com"]
[Date "2020.10.13"]
[Round "1"]
[White "ehrenfeld"]
[Black "Indianlad"]
[Result "0-1"]
[WhiteElo "2472"]
[BlackElo "2916"]
[TimeControl "180+1"]
[EndTime "10:06:19 PDT"]
[Termination "Indianlad won on time"]

1. e4 {[%clk 0:03:00.4]} 1... e5 {[%clk 0:02:59]} 2. Nc3 {[%clk 0:02:59.6]} 2...
d6 {[%clk 0:02:58.2]} 3. Bc4 {[%clk 0:02:57.2]} 3... c6 {[%clk 0:02:55.1]} 4. d3
{[%clk 0:02:55.5]} 4... Nf6 {[%clk 0:02:51.9]} 5. Bb3 {[%clk 0:02:51.6]} 5...
Nbd7 {[%clk 0:02:50.7]} 6. f4 {[%clk 0:02:50.7]} 6... Nc5 {[%clk 0:02:50.9]} 7.
Nf3 {[%clk 0:02:50.4]} 7... exf4 {[%clk 0:02:41.5]} 8. Bxf4 {[%clk 0:02:49.3]}
8... a5 {[%clk 0:02:42.1]} 9. e5 {[%clk 0:02:12.6]} 9... dxe5 {[%clk 0:02:40.9]}
10. Nxe5 {[%clk 0:02:10.4]} 10... Nxb3 {[%clk 0:02:41]} 11. axb3 {[%clk
0:02:10.1]} 11... Bc5 {[%clk 0:02:39.8]} 12. Qf3 {[%clk 0:02:05.9]} 12... O-O
{[%clk 0:02:39.5]} 13. O-O-O {[%clk 0:02:03.4]} 13... a4 {[%clk 0:02:39.1]} 14.
Nxa4 {[%clk 0:02:01.4]} 14... Bd4 {[%clk 0:02:39.4]} 15. c3 {[%clk 0:01:57.6]}
15... Ba7 {[%clk 0:02:17.2]} 16. d4 {[%clk 0:01:45.1]} 16... Be6 {[%clk
0:02:14.5]} 17. c4 {[%clk 0:01:08.6]} 17... Bxd4 {[%clk 0:01:52.5]} 18. Bg5
{[%clk 0:01:02.6]} 18... Rxa4 {[%clk 0:01:39.5]} 19. bxa4 {[%clk 0:00:56.9]}
19... Qb6 {[%clk 0:01:39.9]} 20. Rxd4 {[%clk 0:00:50.6]} 20... Qxd4 {[%clk
0:01:40.8]} 21. Bxf6 {[%clk 0:00:50.2]} 21... gxf6 {[%clk 0:01:41.7]} 22. Qxf6
{[%clk 0:00:45]} 22... Qe3+ {[%clk 0:01:42]} 23. Kb1 {[%clk 0:00:43.2]} 23...
Ra8 {[%clk 0:01:41.7]} 24. Rd1 {[%clk 0:00:24.2]} 24... h6 {[%clk 0:01:40.4]}
25. Rd8+ {[%clk 0:00:22.8]} 25... Rxd8 {[%clk 0:01:40]} 26. Qxd8+ {[%clk
0:00:22.7]} 26... Kg7 {[%clk 0:01:40.9]} 27. Qd6 {[%clk 0:00:20.5]} 27... Qg1+
{[%clk 0:01:35.2]} 28. Ka2 {[%clk 0:00:19.7]} 28... Qxh2 {[%clk 0:01:35.8]} 29.
Qd4 {[%clk 0:00:15]} 29... c5 {[%clk 0:01:23.3]} 30. Qc3 {[%clk 0:00:13.1]}
30... Kf8 {[%clk 0:01:17.9]} 31. Nf3 {[%clk 0:00:08.7]} 31... Qxg2 {[%clk
0:01:18.1]} 32. Qf6 {[%clk 0:00:07.4]} 32... Bxc4+ {[%clk 0:01:15.2]} 33. Ka3
{[%clk 0:00:05.3]} 33... Qg6 {[%clk 0:01:14.4]} 34. Qd8+ {[%clk 0:00:02.6]}
34... Kg7 {[%clk 0:01:15.1]} 35. Ne5 {[%clk 0:00:02.4]} 35... Qg3+ {[%clk
0:01:14.9]} 0-1

[Event "*** SCC Grand Prix: Titled Tuesday Blitz"]
[Site "Chess.com"]
[Date "2020.10.13"]
[Round "1"]
[White "wonderfultime"]
[Black "Grieve72"]
[Result "1-0"]
[WhiteElo "2921"]
[BlackElo "2472"]
[TimeControl "180+1"]
[EndTime "10:06:20 PDT"]
[Termination "wonderfultime won by checkmate"]

1. d4 {[%clk 0:03:00.9]} 1... f5 {[%clk 0:02:58.6]} 2. Nf3 {[%clk 0:02:57.4]}
2... Nf6 {[%clk 0:02:58.4]} 3. g3 {[%clk 0:02:58]} 3... g6 {[%clk 0:02:58.5]} 4.
Bg2 {[%clk 0:02:58.4]} 4... Bg7 {[%clk 0:02:59.1]} 5. O-O {[%clk 0:02:59.3]}
5... O-O {[%clk 0:02:59.7]} 6. c4 {[%clk 0:03:00.1]} 6... d6 {[%clk 0:03:00.2]}
7. Nc3 {[%clk 0:03:00.7]} 7... c6 {[%clk 0:03:00.2]} 8. b3 {[%clk 0:02:57.4]}
8... Na6 {[%clk 0:02:57.9]} 9. Ba3 {[%clk 0:02:54.6]} 9... Nc7 {[%clk
0:02:33.8]} 10. Qc2 {[%clk 0:02:50.1]} 10... Rb8 {[%clk 0:02:28.3]} 11. Bb2
{[%clk 0:02:17.1]} 11... Qe8 {[%clk 0:02:24.1]} 12. Rad1 {[%clk 0:02:04.9]}
12... e5 {[%clk 0:01:59.8]} 13. dxe5 {[%clk 0:02:05.8]} 13... dxe5 {[%clk
0:02:00.5]} 14. Ba3 {[%clk 0:02:06.5]} 14... Rf7 {[%clk 0:02:00.8]} 15. Bd6
{[%clk 0:02:06.7]} 15... Nh5 {[%clk 0:01:25.8]} 16. c5 {[%clk 0:01:48.2]} 16...
Ra8 {[%clk 0:01:18.8]} 17. b4 {[%clk 0:01:46.5]} 17... e4 {[%clk 0:01:07.6]} 18.
Ng5 {[%clk 0:01:46.3]} 18... Rd7 {[%clk 0:01:07.4]} 19. Qb3+ {[%clk 0:01:46.6]}
19... Kh8 {[%clk 0:01:05.3]} 20. Rfe1 {[%clk 0:01:32.2]} 20... Nf6 {[%clk
0:01:03.1]} 21. f3 {[%clk 0:01:30]} 21... e3 {[%clk 0:00:57.2]} 22. f4 {[%clk
0:01:30.3]} 22... a5 {[%clk 0:00:29.5]} 23. bxa5 {[%clk 0:01:22.3]} 23... Rxa5
{[%clk 0:00:27.7]} 24. Bxc7 {[%clk 0:01:22]} 24... Rxc5 {[%clk 0:00:17.8]} 25.
Rxd7 {[%clk 0:01:20.8]} 25... Qxd7 {[%clk 0:00:15.5]} 26. Nf7+ {[%clk 0:01:21]}
26... Kg8 {[%clk 0:00:16]} 27. Nh6+ {[%clk 0:01:18.7]} 27... Kh8 {[%clk
0:00:15]} 28. Nf7+ {[%clk 0:01:18.2]} 28... Kg8 {[%clk 0:00:15.5]} 29. Ng5+
{[%clk 0:01:05.7]} 29... Kh8 {[%clk 0:00:11.9]} 30. Be5 {[%clk 0:01:06.1]} 30...
Ng4 {[%clk 0:00:07.2]} 31. Rd1 {[%clk 0:01:05.6]} 31... Qe7 {[%clk 0:00:04.2]}
32. Nf7+ {[%clk 0:01:06]} 32... Kg8 {[%clk 0:00:04.7]} 33. Nh6+ {[%clk
0:01:06.5]} 33... Kf8 {[%clk 0:00:02.3]} 34. Qg8# {[%clk 0:01:07.4]} 1-0

[Event "*** SCC Grand Prix: Titled Tuesday Blitz"]
[Site "Chess.com"]
[Date "2020.10.13"]
[Round "1"]
[White "Lucas_Tomiello"]
[Black "Aleksey_Sorokin"]
[Result "0-1"]
[WhiteElo "2423"]
[BlackElo "2825"]
[TimeControl "180+1"]
[EndTime "10:06:21 PDT"]
[Termination "Aleksey_Sorokin won by resignation"]

1. e4 {[%clk 0:03:00.9]} 1... c6 {[%clk 0:02:59.7]} 2. d4 {[%clk 0:03:00.9]}
2... d5 {[%clk 0:02:59.7]} 3. Nc3 {[%clk 0:03:00]} 3... dxe4 {[%clk 0:02:59.5]}
4. Nxe4 {[%clk 0:03:00.9]} 4... Bf5 {[%clk 0:02:59.3]} 5. Ng3 {[%clk 0:03:00.8]}
5... Bg6 {[%clk 0:02:59.5]} 6. h4 {[%clk 0:03:00.4]} 6... h6 {[%clk 0:02:59.1]}
7. Nf3 {[%clk 0:03:00.4]} 7... e6 {[%clk 0:02:58.8]} 8. h5 {[%clk 0:02:56.8]}
8... Bh7 {[%clk 0:02:58.7]} 9. Bd3 {[%clk 0:02:57.4]} 9... Bxd3 {[%clk
0:02:56.7]} 10. Qxd3 {[%clk 0:02:58.3]} 10... Nf6 {[%clk 0:02:49.6]} 11. Bd2
{[%clk 0:02:49.6]} 11... c5 {[%clk 0:02:48.7]} 12. O-O-O {[%clk 0:02:45.6]}
12... Nc6 {[%clk 0:02:48.3]} 13. Qb5 {[%clk 0:02:34.2]} 13... Qb6 {[%clk
0:02:34.8]} 14. Qxb6 {[%clk 0:02:22.2]} 14... axb6 {[%clk 0:02:35.7]} 15. Kb1
{[%clk 0:02:22.5]} 15... cxd4 {[%clk 0:02:34.8]} 16. Bf4 {[%clk 0:02:06.7]}
16... Bc5 {[%clk 0:02:31.4]} 17. Ne5 {[%clk 0:02:04.3]} 17... O-O {[%clk
0:02:24.6]} 18. Nxc6 {[%clk 0:02:00.5]} 18... bxc6 {[%clk 0:02:24.2]} 19. Be5
{[%clk 0:02:01.1]} 19... Rfd8 {[%clk 0:02:17.8]} 20. Bxf6 {[%clk 0:01:55]} 20...
gxf6 {[%clk 0:02:18.7]} 21. Ne4 {[%clk 0:01:54.5]} 21... f5 {[%clk 0:02:17]} 22.
Nxc5 {[%clk 0:01:50.1]} 22... bxc5 {[%clk 0:02:17.9]} 23. c3 {[%clk 0:01:44.5]}
23... Rd5 {[%clk 0:02:07.9]} 24. c4 {[%clk 0:01:39.5]} 24... Rd7 {[%clk
0:02:07.5]} 25. Rhg1 {[%clk 0:01:38]} 25... Kg7 {[%clk 0:02:06]} 26. g4 {[%clk
0:01:32.6]} 26... Kf6 {[%clk 0:02:01.9]} 27. gxf5 {[%clk 0:01:26.5]} 27... Kxf5
{[%clk 0:02:02.8]} 28. Rg3 {[%clk 0:01:25.7]} 28... e5 {[%clk 0:01:59.7]} 29.
Rf3+ {[%clk 0:01:12.5]} 29... Ke6 {[%clk 0:01:58.7]} 30. Rg1 {[%clk 0:01:06.8]}
30... e4 {[%clk 0:01:56.9]} 31. Rfg3 {[%clk 0:01:00.9]} 31... Ke5 {[%clk
0:01:53.3]} 32. Rg7 {[%clk 0:01:01]} 32... Raa7 {[%clk 0:01:51.6]} 33. Rh7
{[%clk 0:01:00.3]} 33... f5 {[%clk 0:01:46]} 34. Rxh6 {[%clk 0:00:58.7]} 34...
Rg7 {[%clk 0:01:40.9]} 35. Rxg7 {[%clk 0:00:52.1]} 35... Rxg7 {[%clk 0:01:40.5]}
36. Rxc6 {[%clk 0:00:49.4]} 36... e3 {[%clk 0:01:36.7]} 37. fxe3 {[%clk
0:00:44.9]} 37... dxe3 {[%clk 0:01:36.7]} 38. Rxc5+ {[%clk 0:00:37.6]} 38... Ke4
{[%clk 0:01:35.7]} 39. h6 {[%clk 0:00:32.3]} 39... Rg1+ {[%clk 0:01:28.3]} 40.
Kc2 {[%clk 0:00:31.9]} 40... e2 {[%clk 0:01:19.5]} 41. h7 {[%clk 0:00:30.6]}
41... Rh1 {[%clk 0:01:17.4]} 42. Rc7 {[%clk 0:00:29.7]} 42... Kf3 {[%clk
0:01:10.2]} 43. Re7 {[%clk 0:00:28.2]} 43... Rxh7 {[%clk 0:01:07.5]} 0-1

[Event "*** SCC Grand Prix: Titled Tuesday Blitz"]
[Site "Chess.com"]
[Date "2020.10.13"]
[Round "1"]
[White "blitzking1729"]
[Black "oogee"]
[Result "0-1"]
[WhiteElo "2547"]
[BlackElo "2259"]
[TimeControl "180+1"]
[EndTime "10:06:21 PDT"]
[Termination "oogee won by resignation"]

1. d4 {[%clk 0:03:00.3]} 1... Nf6 {[%clk 0:02:11.9]} 2. Bg5 {[%clk 0:02:55.9]}
2... Ne4 {[%clk 0:02:10.2]} 3. Bf4 {[%clk 0:02:53.8]} 3... c5 {[%clk 0:02:09.7]}
4. f3 {[%clk 0:02:50.9]} 4... Nf6 {[%clk 0:02:06.7]} 5. dxc5 {[%clk 0:02:49.2]}
5... Qa5+ {[%clk 0:02:03.9]} 6. Nc3 {[%clk 0:02:46]} 6... Qxc5 {[%clk
0:01:56.4]} 7. e4 {[%clk 0:02:45.8]} 7... Nc6 {[%clk 0:01:53.4]} 8. Qd2 {[%clk
0:02:45.4]} 8... d6 {[%clk 0:01:50.5]} 9. O-O-O {[%clk 0:02:44.6]} 9... Be6
{[%clk 0:01:40]} 10. Nge2 {[%clk 0:02:24]} 10... g6 {[%clk 0:01:27.8]} 11. Be3
{[%clk 0:02:21.6]} 11... Qa5 {[%clk 0:01:19.8]} 12. Nd4 {[%clk 0:02:21]} 12...
Bxa2 {[%clk 0:00:57.3]} 13. Bb5 {[%clk 0:02:14.9]} 13... Rc8 {[%clk 0:00:50.2]}
14. Nxa2 {[%clk 0:01:52.9]} 14... Qxa2 {[%clk 0:00:49.3]} 15. Qc3 {[%clk
0:01:52.6]} 15... Bg7 {[%clk 0:00:28.1]} 16. Nxc6 {[%clk 0:01:48.2]} 16... Kf8
{[%clk 0:00:19.4]} 17. Nb4 {[%clk 0:01:31.2]} 17... Qa1+ {[%clk 0:00:17.7]} 18.
Kd2 {[%clk 0:01:31]} 18... Nxe4+ {[%clk 0:00:18.3]} 19. fxe4 {[%clk 0:01:31.1]}
19... Bxc3+ {[%clk 0:00:18.5]} 20. Ke2 {[%clk 0:01:11.9]} 20... Qxb2 {[%clk
0:00:18.1]} 21. Bd7 {[%clk 0:01:09]} 21... Bxb4 {[%clk 0:00:15.7]} 22. Bxc8
{[%clk 0:01:07.4]} 22... Qxc2+ {[%clk 0:00:15.9]} 23. Kf3 {[%clk 0:01:06.8]}
23... Qxc8 {[%clk 0:00:15.5]} 24. Rb1 {[%clk 0:01:03.4]} 24... a5 {[%clk
0:00:14.7]} 25. Rhc1 {[%clk 0:01:02.6]} 25... Qe6 {[%clk 0:00:14.8]} 26. Bh6+
{[%clk 0:01:00.1]} 26... Ke8 {[%clk 0:00:14.8]} 27. Rc2 {[%clk 0:00:58.4]} 27...
Kd7 {[%clk 0:00:12.2]} 28. Rbc1 {[%clk 0:00:57.8]} 28... Bc5 {[%clk 0:00:11.6]}
29. Be3 {[%clk 0:00:56.6]} 29... b6 {[%clk 0:00:11.4]} 30. Bxc5 {[%clk
0:00:55.9]} 30... bxc5 {[%clk 0:00:11.8]} 31. Rb2 {[%clk 0:00:55.6]} 31... Ra8
{[%clk 0:00:11.3]} 32. Rcb1 {[%clk 0:00:55.2]} 32... Qc4 {[%clk 0:00:10.5]} 33.
Rb7+ {[%clk 0:00:54.2]} 33... Ke6 {[%clk 0:00:10.6]} 0-1